bitfinex/quotes_SOLUSD_20250112
["timestamp","ask_amount","ask_price","bid_price","bid_amount"]
[1736701041187,10.61938534,190.22,190.18,23.776884]
[1736701042193,10.61938534,190.21,190.18,23.776884]
[1736701045084,20.0,190.25,190.18,23.776884]
[1736701045397,10.61938534,190.23,190.19,0.25098]
[1736701049002,20.0,190.25,190.19,0.25098]
[1736701049187,10.61938534,190.23,190.19,0.25098]
[1736701051405,10.61938534,190.23,190.2,23.776884]
[1736701052002,20.0,190.25,190.2,23.776884]
[1736701052003,10.61938534,190.22,190.2,23.776884]
[1736701054005,20.5,190.25,190.2,23.776884]
[1736701054006,10.61938534,190.21,190.2,23.776884]
[1736701057407,10.61938534,190.21,190.18,23.776884]
[1736701063609,10.61938534,190.2,190.15,4.46]
[1736701063813,10.61938534,190.16,190.13,80.7]
[1736701064891,20.0,190.21,190.14,23.776884]
[1736701065091,10.61938534,190.16,190.14,23.776884]
[1736701066398,10.61938534,190.15,190.11,0.12549]
[1736701066836,10.61938534,190.15,190.11,23.902374]
[1736701069314,10.61938534,190.15,190.11,158.302374]
[1736701071025,10.61938534,190.16,190.11,158.302374]
[1736701072418,10.61938534,190.17,190.11,168.92175934]
[1736701072920,10.61938534,190.17,190.13,23.776884]
[1736701073923,10.61938534,190.17,190.12,23.776884]
[1736701074111,10.61938534,190.16,190.12,23.776884]
[1736701075925,10.61938534,190.17,190.12,34.39626934]
[1736701077928,10.61938534,190.17,190.11,34.39626934]
[1736701081630,10.61938534,190.18,190.12,10.61938534]
[1736701083410,20.0,190.21,190.12,10.61938534]
[1736701083629,10.61938534,190.19,190.14,23.776884]
[1736701084133,10.61938534,190.18,190.12,34.64724934]
[1736701086829,10.61938534,190.18,190.12,34.39626934]
[1736701087033,10.61938534,190.17,190.12,23.776884]
[1736701089435,10.61938534,190.18,190.12,34.39626934]
[1736701090609,6.45704349,190.18,190.12,34.39626934]
[1736701091528,6.45704349,190.18,190.13,0.25098]
[1736701092437,10.61938534,190.19,190.14,23.776884]
[1736701092743,30.61938534,190.21,190.16,23.776884]
[1736701098846,10.61938534,190.2,190.16,23.776884]
[1736701099351,20.0,190.25,190.17,34.39626934]
[1736701099552,10.61938534,190.22,190.17,23.776884]
[1736701100350,0.5,190.24,190.17,23.776884]
[1736701100542,10.61938534,190.22,190.17,23.776884]
[1736701101630,20.0,190.25,190.19,23.776884]
[1736701101840,20.0,190.21,190.19,23.776884]
[1736701102240,20.0,190.21,190.17,10.61938534]
[1736701105121,20.0,190.21,190.19,23.776884]
[1736701105329,10.61938534,190.24,190.19,23.776884]
[1736701105834,10.61938534,190.23,190.19,23.776884]
[1736701112650,10.61938534,190.21,190.19,23.776884]
[1736701113254,10.61938534,190.22,190.19,23.776884]
[1736701113434,10.61938534,190.23,190.19,23.776884]
[1736701113760,10.61938534,190.24,190.19,23.776884]
[1736701116273,10.61938534,190.23,190.19,23.776884]
[1736701116657,10.61938534,190.24,190.21,23.776884]
[1736701119156,10.61938534,190.22,190.21,23.776884]
[1736701119854,10.61938534,190.22,190.2,134.4]
[1736701120035,10.61938534,190.21,190.2,134.4]
[1736701120235,10.61938534,190.22,190.21,23.776884]
[1736701120464,10.61938534,190.22,190.18,80.7]
[1736701120945,10.61938534,190.22,190.19,23.776884]
[1736701121145,20.5,190.26,190.19,23.776884]
[1736701121354,10.61938534,190.23,190.19,23.776884]
[1736701122766,10.61938534,190.22,190.19,23.776884]
[1736701123355,20.5,190.26,190.19,23.776884]
[1736701123570,10.61938534,190.23,190.19,23.776884]
[1736701123735,10.61938534,190.24,190.19,23.776884]
[1736701124436,10.61938534,190.23,190.19,23.776884]
[1736701124761,10.61938534,190.22,190.19,23.776884]
[1736701126255,10.61938534,190.22,190.19,158.176884]
[1736701133463,10.61938534,190.21,190.19,134.4]
[1736701133642,10.61938534,190.2,190.15,138.86]
[1736701133841,10.61938534,190.19,190.15,134.4]
[1736701134064,10.61938534,190.19,190.16,23.776884]
[1736701134859,10.61938534,190.2,190.15,23.902374]
[1736701135361,10.61938534,190.2,190.16,0.12549]
[1736701135544,10.61938534,190.21,190.17,23.776884]
[1736701140869,10.61938534,190.22,190.16,23.902374]
[1736701141669,10.61938534,190.23,190.18,23.902374]
[1736701141875,30.61938534,190.24,190.18,168.92175934]
[1736701143476,30.61938534,190.24,190.19,0.12549]
[1736701146080,10.61938534,190.23,190.19,0.12549]
[1736701147282,10.61938534,190.23,190.2,23.776884]
[1736701147958,10.61938534,190.22,190.2,23.776884]
[1736701152779,10.61938534,190.21,190.2,23.776884]
[1736701153763,10.61938534,190.21,190.19,134.4]
[1736701153961,20.5,190.24,190.17,4.46]
[1736701153962,10.61938534,190.2,190.17,4.46]
[1736701154273,10.61938534,190.18,190.17,28.236884]
[1736701156285,10.61938534,190.18,190.17,23.776884]
[1736701161703,20.0,190.23,190.18,23.776884]
[1736701161887,10.61938534,190.19,190.17,23.776884]
[1736701162651,20.0,190.23,190.17,23.776884]
[1736701162766,10.61938534,190.19,190.17,23.776884]
[1736701164011,10.61938534,190.2,190.17,23.776884]
[1736701164215,10.61938534,190.19,190.17,23.776884]
[1736701167209,20.0,190.23,190.17,23.776884]
[1736701167416,10.61938534,190.2,190.17,23.776884]
[1736701170415,20.0,190.24,190.17,23.776884]
[1736701170715,10.61938534,190.2,190.17,23.776884]
[1736701176523,10.61938534,190.21,190.17,23.776884]
[1736701179724,10.61938534,190.2,190.17,23.776884]
[1736701180022,10.61938534,190.19,190.17,23.776884]
[1736701182228,10.61938534,190.18,190.17,23.776884]
[1736701182927,0.5,190.25,190.17,23.776884]
[1736701182928,10.61938534,190.19,190.17,23.776884]
[1736701188432,10.61938534,190.2,190.17,23.776884]
[1736701189321,10.61938534,190.21,190.17,23.776884]
[1736701190441,20.0,190.23,190.17,23.776884]
[1736701190643,10.61938534,190.21,190.17,23.776884]
[1736701198937,10.61938534,190.2,190.17,23.776884]
[1736701200249,0.5,190.22,190.17,23.776884]
[1736701201151,20.0,190.22,190.17,23.776884]
[1736701201753,20.0,190.22,190.18,0.25098]
[1736701202049,8.20646489,190.26,190.19,23.776884]
[1736701202451,8.20646489,190.26,190.2,0.25098]
[1736701202662,16.3022554,190.27,190.2,0.25098]
[1736701202663,8.20646489,190.27,190.21,23.776884]
[1736701203931,10.62800179,190.26,190.21,23.776884]
[1736701205050,10.62800179,190.24,190.21,23.776884]
[1736701205261,10.62800179,190.23,190.21,23.776884]
[1736701206759,10.62800179,190.24,190.21,23.776884]
[1736701206952,8.20646489,190.27,190.21,23.776884]
[1736701207276,10.62800179,190.26,190.21,23.776884]
[1736701207434,8.20646489,190.27,190.21,23.776884]
[1736701207629,18.83446668,190.27,190.21,34.40488579]
[1736701207960,8.20646489,190.28,190.26,23.776884]
[1736701208752,8.20646489,190.29,190.26,23.776884]
[1736701209054,8.20646489,190.29,190.26,158.176884]
[1736701209256,8.20646489,190.29,190.26,168.80488579]
[1736701209438,18.83446668,190.29,190.26,158.176884]
[1736701209640,10.62800179,190.29,190.26,158.176884]
[1736701209969,10.62800179,190.27,190.23,80.7]
[1736701210176,10.62800179,190.24,190.22,4.46]
[1736701210342,20.0,190.27,190.18,136.0261]
[1736701210545,10.62800179,190.21,190.19,23.776884]
[1736701210942,10.62800179,190.22,190.18,136.0261]
[1736701212074,10.62800179,190.23,190.19,23.776884]
[1736701213180,10.62800179,190.22,190.19,23.776884]
[1736701214938,10.62800179,190.21,190.17,215.1]
[1736701215262,0.5,190.26,190.17,80.7]
[1736701215263,10.62800179,190.19,190.17,80.7]
[1736701215439,10.62800179,190.19,190.18,23.776884]
[1736701218262,10.62800179,190.19,190.14,6.0661]
[1736701218477,10.62800179,190.17,190.14,6.0661]
[1736701218863,10.62800179,190.17,190.15,23.776884]
[1736701219282,10.62800179,190.18,190.15,23.776884]
[1736701220192,8.78407374,190.25,190.15,23.776884]
[1736701220384,10.62800179,190.18,190.15,23.776884]
[1736701221065,10.62800179,190.17,190.15,23.776884]
[1736701221781,10.62800179,190.16,190.15,23.776884]
[1736701222583,10.62800179,190.16,190.13,23.776884]
[1736701222887,10.62800179,190.15,190.13,23.776884]
[1736701223087,10.62800179,190.15,190.12,23.776884]
[1736701225083,10.62800179,190.16,190.12,23.776884]
[1736701225390,10.62800179,190.15,190.12,23.776884]
[1736701226170,10.62800179,190.16,190.12,23.776884]
[1736701226372,10.62800179,190.15,190.12,23.776884]
[1736701226569,10.62800179,190.16,190.12,23.776884]
[1736701227480,10.62800179,190.13,190.1,6.0775]
[1736701227661,10.62800179,190.12,190.09,1.6261]
[1736701228691,10.62800179,190.12,190.1,23.776884]
[1736701229694,10.62800179,190.12,190.09,23.776884]
[1736701230295,10.62800179,190.12,190.08,28.487864]
[1736701230787,10.62800179,190.13,190.08,162.887864]
[1736701232888,10.62800179,190.12,190.08,158.176884]
[1736701233187,10.62800179,190.12,190.08,23.776884]
[1736701234090,1.5172,190.16,190.09,0.25098]
[1736701234270,10.62800179,190.15,190.1,10.62800179]
[1736701236272,10.62800179,190.15,190.09,10.87898179]
[1736701238208,10.62800179,190.13,190.08,23.776884]
[1736701238367,10.62800179,190.13,190.08,28.236884]
[1736701238573,10.62800179,190.12,190.08,28.236884]
[1736701239674,10.62800179,190.13,190.08,28.236884]
[1736701240994,10.62800179,190.12,190.08,28.236884]
[1736701241870,10.62800179,190.1,190.05,140.4775]
[1736701242072,10.62800179,190.08,190.04,1.5501]
[1736701242479,10.62800179,190.09,190.05,23.776884]
[1736701247287,10.62800179,190.08,190.05,23.776884]
[1736701248884,10.62800179,190.06,190.03,4.46]
[1736701249206,10.62800179,190.06,190.02,23.776884]
[1736701249408,10.62800179,190.06,190.01,24.153354]
[1736701249708,10.62800179,190.06,190.01,28.613354]
[1736701251484,10.62800179,190.05,190.01,158.553354]
[1736701252209,10.62800179,190.06,190.01,158.553354]
[1736701253903,10.62800179,190.06,190.01,169.18135579]
[1736701254321,10.62800179,190.06,190.01,158.553354]
[1736701254497,10.62800179,190.06,190.01,169.18135579]
[1736701256591,10.62800179,190.06,190.01,23.902374]
[1736701256796,10.62800179,190.05,190.01,23.902374]
[1736701257520,10.62800179,190.04,190.01,23.902374]
[1736701260233,10.62800179,190.05,190.01,23.902374]
[1736701261931,10.62800179,190.04,189.99,216.86778]
[1736701262107,10.62800179,190.03,189.99,86.6768]
[1736701262318,10.62800179,190.02,189.99,86.6768]
[1736701262501,10.62800179,190.02,190.0,23.776884]
[1736701263424,0.5,190.06,190.0,23.776884]
[1736701263636,10.62800179,190.03,190.0,23.776884]
[1736701264425,10.62800179,190.02,190.0,23.776884]
[1736701264924,10.62800179,190.01,189.98,0.12549]
[1736701265125,0.5,190.09,189.98,4.58549]
[1736701265126,10.62800179,190.0,189.98,4.58549]
[1736701265428,10.62800179,190.0,189.99,23.776884]
[1736701265612,0.5,190.09,189.99,23.776884]
[1736701265613,10.62800179,190.01,189.99,23.776884]
[1736701265922,10.62800179,190.0,189.98,0.12549]
[1736701266226,10.62800179,190.0,189.98,23.902374]
[1736701268009,10.62800179,190.0,189.96,140.4951]
[1736701268209,10.62800179,189.99,189.95,82.2998]
[1736701268416,20.0,190.05,189.96,0.12549]
[1736701268615,10.62800179,189.99,189.96,0.12549]
[1736701269409,10.62800179,189.99,189.95,215.1]
[1736701269805,0.10957949,189.97,189.95,215.1]
[1736701270204,0.10957949,189.97,189.96,24.278844]
[1736701270410,0.1033325,189.98,189.97,270.891044]
[1736701270614,0.10192256,190.0,189.99,30.0]
[1736701270831,19.41207553,190.17,190.03,0.12549]
[1736701271131,19.41207553,190.17,190.05,92.313644]
[1736701271132,8.28407374,190.17,190.05,92.313644]
[1736701271310,8.28407374,190.17,190.1,0.50196]
[1736701271511,8.28407374,190.17,190.14,23.776884]
[1736701271705,8.28407374,190.17,190.13,23.776884]
[1736701272233,0.5,190.21,190.16,23.776884]
[1736701272538,10.62800179,190.2,190.16,23.776884]
[1736701273033,10.62800179,190.2,190.15,23.776884]
[1736701273338,10.62800179,190.19,190.15,23.776884]
[1736701275631,10.62800179,190.18,190.15,23.776884]
[1736701276837,10.62800179,190.17,190.15,23.776884]
[1736701277241,10.62800179,190.16,190.14,23.776884]
[1736701277415,10.62800179,190.15,190.14,23.776884]
[1736701277739,10.62800179,190.15,190.11,23.902374]
[1736701278033,0.5,190.19,190.11,23.902374]
[1736701278034,10.62800179,190.14,190.11,158.302374]
[1736701278237,10.62800179,190.12,190.08,134.4]
[1736701278414,10.62800179,190.1,190.09,4.46]
[1736701278738,10.62800179,190.1,190.07,4.46]
[1736701278926,10.62800179,190.08,190.07,4.46]
[1736701279135,10.62800179,190.09,190.07,28.236884]
[1736701279317,10.62800179,190.09,190.08,23.776884]
[1736701279517,10.62800179,190.09,190.07,4.46]
[1736701280454,10.62800179,190.08,190.07,4.46]
[1736701280753,10.62800179,190.08,190.02,134.77647]
[1736701280919,10.62800179,190.05,190.03,23.776884]
[1736701281364,10.62800179,190.05,190.02,138.98549]
[1736701281526,10.62800179,190.03,190.01,80.7]
[1736701282272,10.62800179,190.03,190.02,23.776884]
[1736701282772,10.62800179,190.03,190.01,80.7]
[1736701283257,20.0,190.07,190.02,23.776884]
[1736701283416,20.0,190.07,189.99,138.98549]
[1736701283417,14.98101511,190.03,190.0,23.902374]
[1736701283618,14.98101511,190.02,190.0,23.902374]
[1736701284549,14.98101511,190.03,190.0,23.902374]
[1736701286545,14.98101511,190.03,190.0,23.776884]
[1736701286743,0.5,190.07,190.0,23.776884]
[1736701286744,14.98101511,190.01,190.0,23.776884]
[1736701286934,14.98101511,190.01,189.95,4.46]
[1736701287133,14.98101511,189.98,189.95,4.46]
[1736701287336,14.98101511,189.99,189.96,23.776884]
[1736701287537,14.98101511,189.98,189.96,23.776884]
[1736701287842,14.98101511,189.98,189.95,0.12549]
[1736701288221,14.98101511,189.98,189.95,23.902374]
[1736701289565,14.98101511,189.97,189.94,4.46]
[1736701289737,0.11311328,189.96,189.94,4.46]
[1736701290144,0.11311328,189.96,189.95,23.776884]
[1736701290660,14.95029575,189.96,189.95,23.776884]
[1736701292225,14.95029575,189.96,189.92,23.902374]
[1736701292425,14.98101511,189.95,189.92,162.762374]
[1736701293152,14.98101511,189.96,189.92,162.762374]
[1736701293345,14.98101511,189.95,189.92,162.762374]
[1736701293553,14.98101511,189.96,189.92,162.762374]
[1736701296449,15.0956669,189.97,189.92,162.762374]
[1736701297036,15.0956669,189.97,189.92,109.062374]
[1736701298232,0.11465179,189.97,189.92,109.062374]
[1736701299151,15.0956669,189.97,189.92,109.062374]
[1736701299554,14.98101511,189.96,189.92,109.062374]
[1736701302057,15.0956669,189.97,189.94,0.12549]
[1736701302238,0.11465179,189.97,189.96,158.302374]
[1736701302843,0.11465179,189.97,189.96,158.678844]
[1736701303045,0.11465179,189.97,189.96,173.65985911]
[1736701303343,0.11465179,189.97,189.96,168.26687297]
[1736701303567,0.11465179,189.97,189.96,158.678844]
[1736701304257,0.11465179,189.97,189.96,168.26687297]
[1736701304944,0.11465179,189.97,189.96,158.678844]
[1736701306660,0.11465179,189.97,189.96,168.26687297]
[1736701308145,0.11465179,189.97,189.96,248.96687297]
[1736701308940,0.11465179,189.97,189.96,239.378844]
[1736701309748,0.2160389,189.97,189.96,239.378844]
[1736701310651,0.10138711,189.97,189.96,239.378844]
[1736701312861,0.10138711,189.97,189.96,270.978844]
[1736701315267,0.11065026,190.0,189.98,215.22549]
[1736701315454,0.11065026,190.0,189.99,55.06807271]
[1736701315980,0.11065026,190.0,189.99,64.65610168]
[1736701316484,0.11065026,190.0,189.99,356.00111756]
[1736701316647,0.11065026,190.0,189.99,355.21188885]
[1736701317150,0.09955898,190.05,190.01,54.278844]
[1736701317349,0.09955898,190.05,190.01,64.65594101]
[1736701321071,9.58802897,190.09,190.02,24.278844]
[1736701321274,9.58802897,190.09,190.05,158.302374]
[1736701321471,9.58802897,190.1,190.05,158.678844]
[1736701321863,9.58802897,190.08,190.05,158.678844]
[1736701322066,9.58802897,190.09,190.05,158.678844]
[1736701322662,9.58802897,190.08,190.05,158.302374]
[1736701322851,9.69625546,190.06,190.05,158.302374]
[1736701325080,9.69625546,190.06,190.05,158.176884]
[1736701326975,9.69625546,190.06,190.05,23.776884]
[1736701330563,9.58802897,190.06,190.05,23.776884]
[1736701341804,9.58802897,190.06,190.01,134.4]
[1736701342010,9.58802897,190.02,190.01,134.4]
[1736701342207,9.58802897,190.03,190.02,23.776884]
[1736701344823,9.58802897,190.04,190.02,23.776884]
[1736701346221,20.0,190.11,190.02,158.176884]
[1736701346426,9.58802897,190.08,190.04,23.776884]
[1736701347521,9.58802897,190.07,190.04,23.776884]
[1736701348526,9.58802897,190.06,190.04,158.176884]
[1736701350405,9.58802897,190.07,190.04,158.176884]
[1736701350918,9.58802897,190.06,190.04,158.176884]
[1736701351709,9.58802897,190.05,190.02,215.1]
[1736701352207,0.5,190.14,190.02,215.1]
[1736701352208,9.58802897,190.04,190.03,23.776884]
[1736701354427,0.5,190.13,190.03,23.776884]
[1736701354428,9.58802897,190.06,190.03,158.176884]
[1736701356721,20.0,190.12,190.03,158.176884]
[1736701356896,9.58802897,190.07,190.03,158.176884]
[1736701357720,9.58802897,190.06,190.03,158.176884]
[1736701361310,9.58802897,190.07,190.03,158.176884]
[1736701361509,82.396,190.15,190.05,158.176884]
[1736701361510,0.5,190.14,190.05,158.176884]
[1736701361709,9.58802897,190.09,190.05,158.176884]
[1736701362418,9.58802897,190.08,190.05,158.176884]
[1736701362729,9.58802897,190.06,190.03,142.65551817]
[1736701363029,9.58802897,190.05,190.03,142.65551817]
[1736701363211,9.58802897,190.05,190.04,23.776884]
[1736701366314,9.58802897,190.06,190.04,158.176884]
[1736701367834,9.58802897,190.08,190.04,158.176884]
[1736701369828,9.58802897,190.07,190.04,158.176884]
[1736701370025,9.58802897,190.06,190.04,158.176884]
[1736701371503,9.58802897,190.07,190.04,158.176884]
[1736701374839,9.58802897,190.06,190.04,23.776884]
[1736701382366,9.58802897,190.08,190.05,0.12549]
[1736701382553,9.58802897,190.09,190.06,158.176884]
[1736701383065,9.58802897,190.08,190.06,158.176884]
[1736701384864,9.58802897,190.1,190.07,134.52549]
[1736701385055,9.58802897,190.11,190.08,23.776884]
[1736701385261,9.58802897,190.11,190.08,158.176884]
[1736701387646,9.58802897,190.13,190.11,0.12549]
[1736701387850,9.58802897,190.15,190.12,23.776884]
[1736701388051,9.58802897,190.16,190.12,158.176884]
[1736701388371,9.58802897,190.17,190.14,23.776884]
[1736701388969,9.58802897,190.17,190.14,158.176884]
[1736701389263,9.58802897,190.15,190.11,215.1]
[1736701389752,5.0,190.24,190.11,215.1]
[1736701389753,9.58802897,190.14,190.11,215.1]
[1736701389958,9.58802897,190.14,190.12,23.776884]
[1736701392675,9.58802897,190.14,190.12,158.176884]
[1736701393981,0.5,190.23,190.13,0.12549]
[1736701393982,9.58802897,190.15,190.13,0.12549]
[1736701394186,9.58802897,190.17,190.14,23.776884]
[1736701394883,9.58802897,190.16,190.14,158.176884]
[1736701397685,9.58802897,190.15,190.14,158.302374]
[1736701398791,9.58802897,190.17,190.14,158.302374]
[1736701400086,9.58802897,190.15,190.14,158.176884]
[1736701400581,9.58802897,190.15,190.14,134.4]
[1736701401783,9.58802897,190.15,190.14,158.176884]
[1736701403879,9.58802897,190.15,190.14,23.776884]
[1736701408085,1.5188,190.25,190.14,23.776884]
[1736701408086,20.0,190.23,190.14,23.776884]
[1736701408275,9.58802897,190.18,190.14,158.176884]
[1736701408485,9.58802897,190.18,190.15,0.12549]
[1736701409473,9.58802897,190.19,190.16,158.176884]
[1736701409987,9.58802897,190.19,190.17,0.12549]
[1736701410611,9.58802897,190.2,190.17,0.12549]
[1736701410798,9.58802897,190.2,190.18,23.776884]
[1736701413210,9.58802897,190.21,190.19,0.12549]
[1736701413790,38.35211588,190.26,190.2,23.776884]
[1736701415604,9.58802897,190.21,190.2,23.776884]
[1736701418809,20.0,190.27,190.21,0.12549]
[1736701418983,9.58802897,190.24,190.22,158.176884]
[1736701419414,9.58802897,190.23,190.22,158.302374]
[1736701420126,9.58802897,190.24,190.22,158.302374]
[1736701420620,9.58802897,190.23,190.22,158.302374]
[1736701421108,9.58802897,190.23,190.22,158.176884]
[1736701422514,1.6123,190.3,190.22,23.776884]
[1736701422696,9.58802897,190.23,190.22,23.776884]
[1736701429308,2.1123,190.3,190.22,23.776884]
[1736701429503,9.58802897,190.26,190.22,23.776884]
[1736701431305,9.58802897,190.25,190.22,23.776884]
[1736701431809,9.58802897,190.23,190.22,23.776884]
[1736701437836,9.58802897,190.23,190.21,215.1]
[1736701438018,9.58802897,190.22,190.21,215.1]
[1736701438226,9.58802897,190.22,190.21,238.876884]
[1736701443773,9.58802897,190.22,190.21,23.776884]
[1736701446337,9.58802897,190.22,190.15,80.7]
[1736701446550,9.58802897,190.16,190.15,80.7]
[1736701446756,9.58802897,190.16,190.15,104.476884]
[1736701449154,0.5,190.25,190.15,104.476884]
[1736701449155,20.0,190.23,190.16,23.776884]
[1736701449357,9.58802897,190.17,190.16,23.776884]
[1736701449652,20.0,190.23,190.16,23.776884]
[1736701449831,9.58802897,190.2,190.17,0.12549]
[1736701450166,9.58802897,190.2,190.17,0.50196]
[1736701452063,38.35211588,190.26,190.2,23.776884]
[1736701452064,9.58802897,190.21,190.2,23.776884]
[1736701454550,9.58802897,190.21,190.19,134.4]
[1736701454773,9.58802897,190.2,190.19,134.4]
[1736701455558,9.58802897,190.2,190.19,23.776884]
[1736701460582,0.5,190.25,190.14,0.12549]
[1736701460901,9.58802897,190.17,190.14,158.302374]
[1736701462265,9.58802897,190.18,190.14,158.302374]
[1736701465063,5.5,190.25,190.14,158.176884]
[1736701465267,9.58802897,190.15,190.14,23.776884]
[1736701465484,9.58802897,190.15,190.12,227.79551817]
[1736701465682,12.0403,190.23,190.12,227.79551817]
[1736701465683,9.58802897,190.14,190.12,219.54]
[1736701465892,9.58802897,190.14,190.13,23.776884]
[1736701472299,9.58802897,190.14,190.09,8.25551817]
[1736701472596,9.58802897,190.1,190.08,223.35551817]
[1736701472774,9.58802897,190.09,190.08,247.13240217]
[1736701473400,9.58802897,190.09,190.08,238.876884]
[1736701474184,9.58802897,190.09,190.08,23.776884]
[1736701480728,9.58802897,190.09,190.05,134.4]
[1736701481018,9.58802897,190.08,190.05,134.4]
[1736701481191,9.58802897,190.08,190.06,23.776884]
[1736701483726,9.58802897,190.09,190.08,23.776884]
[1736701484037,9.58802897,190.1,190.08,23.776884]
[1736701486833,9.58802897,190.09,190.08,23.776884]
[1736701491126,9.58802897,190.09,190.07,134.4]
[1736701491319,9.58802897,190.08,190.05,219.54]
[1736701491525,9.58802897,190.06,190.05,243.442374]
[1736701491711,9.58802897,190.07,190.05,219.66549]
[1736701492349,9.58802897,190.07,190.06,23.776884]
[1736701493019,9.58802897,190.07,190.05,219.54]
[1736701493218,9.58802897,190.06,190.05,243.316884]
[1736701495211,9.58802897,190.06,190.05,238.876884]
[1736701497512,9.58802897,190.06,190.05,23.776884]
[1736701498848,9.58802897,190.06,189.99,142.65551817]
[1736701499017,9.58802897,190.0,189.99,32.03240217]
[1736701499520,9.58802897,190.0,189.99,23.776884]
[1736701500947,9.58802897,190.0,189.96,215.1]
[1736701501108,9.58802897,189.97,189.96,215.1]
[1736701501313,9.58802897,189.97,189.96,238.876884]
[1736701501515,9.58802897,189.97,189.96,215.1]
[1736701502047,9.58802897,189.97,189.96,238.876884]
[1736701502711,20.0,190.05,189.97,23.902374]
[1736701502913,9.58802897,189.99,189.97,23.902374]
[1736701503146,9.58802897,190.0,189.98,0.12549]
[1736701504653,9.58802897,190.03,189.99,23.776884]
[1736701505315,9.58802897,190.03,190.0,0.12549]
[1736701505531,9.58802897,190.05,190.02,0.12549]
[1736701508428,9.58802897,190.04,190.02,0.12549]
[1736701508722,9.58802897,190.03,190.02,0.12549]
[1736701508940,9.58802897,190.04,190.02,0.12549]
[1736701509141,9.58802897,190.05,190.02,0.12549]
[1736701509345,9.58802897,190.07,190.04,0.12549]
[1736701509941,9.58802897,190.06,190.04,0.12549]
[1736701510730,9.58802897,190.05,190.04,0.12549]
[1736701512163,9.58802897,190.05,190.03,158.176884]
[1736701514345,9.58802897,190.04,190.03,134.4]
[1736701515557,9.58802897,190.04,190.02,23.776884]
[1736701515853,9.58802897,190.03,190.02,23.776884]
[1736701519053,9.58802897,190.03,190.0,80.82549]
[1736701519243,9.58802897,190.01,190.0,104.602374]
[1736701520149,9.58802897,190.02,190.01,23.776884]
[1736701520451,9.58802897,190.03,190.01,23.776884]
[1736701522231,9.58802897,190.02,190.01,23.776884]
[1736701522441,9.58802897,190.02,189.97,4.44]
[1736701522661,9.58802897,189.98,189.96,88.95551817]
[1736701522840,2.0126,190.07,189.94,158.75853634]
[1736701522841,9.58802897,189.97,189.95,8.25551817]
[1736701523033,9.58802897,189.96,189.95,8.25551817]
[1736701523658,9.58802897,189.96,189.95,23.776884]
[1736701523845,9.58802897,189.96,189.94,4.44]
[1736701524042,9.58802897,189.95,189.94,4.44]
[1736701525165,9.58802897,189.95,189.94,28.216884]
[1736701527164,9.58802897,189.95,189.94,23.776884]
[1736701538371,9.58802897,189.95,189.89,6.3469]
[1736701538544,9.58802897,189.9,189.88,223.35551817]
[1736701538747,9.58802897,189.89,189.87,4.44]
[1736701538946,9.58802897,189.88,189.87,4.44]
[1736701539452,9.58802897,189.9,189.87,139.09098]
[1736701539681,9.58802897,189.9,189.88,23.902374]
[1736701539867,9.58802897,189.91,189.88,23.902374]
[1736701540383,20.0,189.96,189.88,23.902374]
[1736701540673,9.58802897,189.9,189.88,23.902374]
[1736701541481,9.58802897,189.92,189.88,158.302374]
[1736701541679,9.58802897,189.93,189.88,158.302374]
[1736701542645,9.58802897,189.91,189.88,158.302374]
[1736701543474,9.58802897,189.89,189.88,23.902374]
[1736701543649,9.58802897,189.89,189.88,23.776884]
[1736701543857,9.58802897,189.89,189.87,134.4]
[1736701544063,9.58802897,189.88,189.86,85.14]
[1736701545080,9.58802897,189.88,189.87,23.776884]
[1736701548449,9.58802897,189.88,189.86,23.776884]
[1736701548676,9.58802897,189.87,189.86,23.776884]
[1736701548976,9.58802897,189.88,189.86,23.776884]
[1736701549384,9.58802897,189.88,189.85,23.902374]
[1736701552272,9.58802897,189.87,189.85,23.902374]
[1736701552659,9.58802897,189.86,189.85,23.776884]
[1736701555893,9.58802897,189.86,189.8,134.4]
[1736701556072,0.5,189.89,189.79,31.63]
[1736701556073,9.58802897,189.83,189.79,4.44]
[1736701556273,9.58802897,189.83,189.8,24.278844]